[Event "Romanian Open 2019"]
[Site "Alba Iulia"]
[Date "2019.10.30"]
[Round "3.7"]
[White "Istratescu, Andrei"]
[Black "Ciorgovean, Iustin"]
[Result "1/2-1/2"]
[ECO "C18"]
[WhiteElo "2564"]
[BlackElo "2331"]
[Annotator "ChessBase"]
[PlyCount "125"]
[EventDate "2019.10.28"]
[EventType "swiss"]
[EventCountry "ROU"]
[SourceTitle "playchess.com"]
[Source "ChessBase"]
[SourceQuality "1"]
[TimeControl "5400+30"]

1. e4 {[%emt 0:01:15]} e6 {[%emt 0:00:00]} 2. d4 {[%emt 0:00:14]} d5 {[%emt 0:00:00]} 3. Nc3 {[%emt 0:00:11]} Bb4 {[%emt 0:00:00]} 4. e5 {[%emt 0:00:35]} c5 {[%emt 0:00:00]} 5. a3 {[%emt 0:00:11]} Bxc3+ {[%emt 0:00:04]} 6. bxc3 {[%emt 0:00:02]} Ne7 {[%emt 0:00:12]} 7. Qg4 {[%emt 0:00:09]} Kf8 {[%emt 0:00:07]} 8. Qd1 {[%emt 0:01:33]} Qc7 {[%emt 0:05:02]} 9. Nf3 {[%emt 0:00:30]} b6 {[%emt 0:00:57]} 10. a4 {[%emt 0:01:39]} Kg8 {[%emt 0:08:00]} 11. a5 {[%emt 0:10:38]} bxa5 {[%emt 0:05:17]} 12. Bd3 {[%emt 0:00:29]} Ba6 {[%emt 0:05:05]} 13. O-O {[%emt 0:01:19]} Bxd3 {[%emt 0:08:31]} 14. cxd3 {[%emt 0:00:42]} cxd4 {[%emt 0:01:17]} 15. cxd4 {[%emt 0:00:12]} Nbc6 {[%emt 0:03:43]} 16. Ba3 {[%emt 0:01:11]} h6 {[%emt 0:05:28]} 17. Qa4 {[%emt 0:03:14]} Kh7 {[%emt 0:04:40]} 18. Rfc1 {[%emt 0:00:12]} Qb6 {[%emt 0:05:50]} 19. Bc5 {[%emt 0:05:27]} Qa6 {[%emt 0:01:40]} 20. Bxe7 {[%emt 0:01:42]} Nxe7 {[%emt 0:00:12]} 21. Rc7 {[%emt 0:00:02]} Ng6 {[%emt 0:06:19]} 22. Rxf7 {[%emt 0:03:14]} Rhf8 {[%emt 0:00:53]} 23. Rxf8 {[%emt 0:05:35]} Rxf8 {[%emt 0:01:52]} 24. Qa3 {[%emt 0:00:48]} Rf7 {[%emt 0:02:28]} 25. Ne1 {[%emt 0:09:39]} Qb6 {[%emt 0:07:14]} 26. Qc3 {[%emt 0:03:01]} Qb4 {[%emt 0:06:43]} 27. Qxb4 {[%emt 0:01:46]} axb4 {[%emt 0:00:14]} 28. Kf1 {[%emt 0:00:01]} Rb7 {[%emt 0:04:31]} 29. Ke2 {[%emt 0:00:03]} Ne7 {[%emt 0:01:19]} 30. Kd2 {[%emt 0:00:20]} Nc6 {[%emt 0:00:48]} 31. Nf3 {[%emt 0:00:53]} a5 {[%emt 0:00:40]} 32. Kc2 {[%emt 0:02:09]} b3+ {[%emt 0:01:20]} 33. Kb2 {[%emt 0:01:11]} Rb4 {[%emt 0:01:18]} 34. Ka3 {[%emt 0:01:52]} Na7 {[%emt 0:04:02]} 35. Kb2 {[%emt 0:00:57]} Nc6 {[%emt 0:01:17]} 36. Ka3 {[%emt 0:00:22]} Nxd4 {[%emt 0:00:34]} 37. Nxd4 {[%emt 0:00:06]} Rxd4 {[%emt 0:00:08]} 38. Kxb3 {[%emt 0:00:05]} Rxd3+ {[%emt 0:00:22]} 39. Kc2 {[%emt 0:00:03]} Rd4 {[%emt 0:00:06]} 40. Rxa5 {[%emt 0:01:24]} Re4 {[%emt 0:00:07]} 41. Kd2 {[%emt 0:02:26]} Rxe5 {[%emt 0:00:09]} 42. f3 {[%emt 0:01:01]} g5 {[%emt 0:00:50]} 43. Ra4 {[%emt 0:01:38]} Kg6 {[%emt 0:00:17]} 44. h4 {[%emt 0:00:11]} h5 {[%emt 0:02:01]} 45. g3 {[%emt 0:02:21]} Rf5 {[%emt 0:01:02]} 46. Ke3 {[%emt 0:00:16]} gxh4 {[%emt 0:01:07]} 47. Rxh4 {[%emt 0:00:29]} Rf7 {[%emt 0:00:20]} 48. g4 {[%emt 0:04:11]} hxg4 {[%emt 0:00:20]} 49. Rxg4+ {[%emt 0:00:03]} Kf6 {[%emt 0:00:09]} 50. Rf4+ {[%emt 0:00:06]} Ke7 {[%emt 0:00:08]} 51. Ra4 {[%emt 0:00:03]} Kd6 {[%emt 0:00:24]} 52. f4 {[%emt 0:03:46]} Rb7 {[%emt 0:00:46]} 53. Ra6+ {[%emt 0:00:45]} Ke7 {[%emt 0:00:11]} 54. f5 {[%emt 0:00:51]} Rb3+ {[%emt 0:01:14]} 55. Kf4 {[%emt 0:00:13]} Rb4+ {[%emt 0:00:21]} 56. Kg5 {[%emt 0:00:07]} exf5 {[%emt 0:00:18]} 57. Kxf5 {[%emt 0:00:12]} Re4 {[%emt 0:00:23]} 58. Rh6 {[%emt 0:00:19]} Re1 {[%emt 0:01:00]} 59. Kf4 {[%emt 0:02:49]} d4 {[%emt 0:01:15]} 60. Kf3 {[%emt 0:00:31]} d3 {[%emt 0:00:11]} 61. Rh2 {[%emt 0:00:09]} Re2 {[%emt 0:00:14]} 62. Rxe2+ {[%emt 0:00:07]} dxe2 {[%emt 0:00:04]} 63. Kxe2 1/2-1/2

[Event "Romanian Open 2019"]
[Site "Alba Iulia"]
[Date "2019.10.30"]
[Round "3.8"]
[White "Manolache, Marius"]
[Black "Gheorghiu, Calin"]
[Result "1-0"]
[ECO "A46"]
[WhiteElo "2548"]
[BlackElo "2315"]
[Annotator "ChessBase"]
[PlyCount "59"]
[EventDate "2019.10.28"]
[EventType "swiss"]
[EventCountry "ROU"]
[SourceTitle "playchess.com"]
[Source "ChessBase"]
[SourceQuality "1"]
[TimeControl "5400+30"]

1. d4 {[%emt 0:00:00]} Nf6 {[%emt 0:02:40]} 2. Nf3 {[%emt 0:00:00]} d5 {[%emt 0:00:03]} 3. c4 {[%emt 0:00:01]} e6 {[%emt 0:00:05]} 4. e3 {[%emt 0:01:58]} c5 {[%emt 0:02:24]} 5. cxd5 {[%emt 0:00:19]} exd5 {[%emt 0:01:11]} 6. dxc5 {[%emt 0:00:35]} Bxc5 {[%emt 0:00:47]} 7. Bb5+ {[%emt 0:01:05]} Nc6 {[%emt 0:01:58]} 8. O-O {[%emt 0:00:09]} O-O {[%emt 0:01:57]} 9. Nc3 {[%emt 0:04:03]} a6 {[%emt 0:05:46]} 10. Be2 {[%emt 0:01:42]} Ba7 {[%emt 0:02:49]} 11. b3 {[%emt 0:00:30]} d4 {[%emt 0:02:23]} 12. exd4 {[%emt 0:00:17]} Nxd4 {[%emt 0:00:06]} 13. Nxd4 {[%emt 0:15:13]} Qxd4 {[%emt 0:00:16]} 14. Qxd4 {[%emt 0:03:07]} Bxd4 {[%emt 0:00:03]} 15. Bd2 {[%emt 0:00:10]} Bg4 {[%emt 0:03:05]} 16. Bxg4 {[%emt 0:03:43]} Nxg4 {[%emt 0:00:07]} 17. h3 {[%emt 0:00:28]} Ne5 {[%emt 0:01:02]} 18. Rad1 {[%emt 0:00:17]} Rfd8 {[%emt 0:04:36]} 19. Ne4 {[%emt 0:00:58]} Rd7 {[%emt 0:08:52]} 20. Bf4 {[%emt 0:05:58]} Rad8 {[%emt 0:00:48]} 21. Bg5 {[%emt 0:02:22]} f6 {[%emt 0:06:24]} 22. Bxf6 {[%emt 0:00:56]} gxf6 {[%emt 0:03:27]} 23. Nxf6+ {[%emt 0:00:07]} Kf7 {[%emt 0:00:43]} 24. Nxd7 {[%emt 0:00:06]} Rxd7 {[%emt 0:00:03]} 25. Rfe1 {[%emt 0:01:53]} Kf6 {[%emt 0:01:42]} 26. Kf1 {[%emt 0:00:28]} Nc6 {[%emt 0:02:54]} 27. Re4 {[%emt 0:04:51]} Rd6 {[%emt 0:03:43]} 28. Rf4+ {[%emt 0:07:33]} Ke6 {[%emt 0:01:58]} 29. Re1+ {[%emt 0:01:26]} Kd5 {[%emt 0:03:05]} 30. Rf5+ {[%emt 0:00:11]} 1-0

[Event "Romanian Open 2019"]
[Site "Alba Iulia"]
[Date "2019.10.30"]
[Round "3.9"]
[White "Punin, Andrii"]
[Black "Vedmediuc, Serghei"]
[Result "1/2-1/2"]
[ECO "B47"]
[WhiteElo "2310"]
[BlackElo "2457"]
[Annotator "ChessBase"]
[PlyCount "48"]
[EventDate "2019.10.28"]
[EventType "swiss"]
[EventCountry "ROU"]
[SourceTitle "playchess.com"]
[Source "ChessBase"]
[SourceQuality "1"]
[TimeControl "5400+30"]

1. e4 {[%emt 0:00:00]} c5 {[%emt 0:02:27]} 2. Nf3 {[%emt 0:00:00]} Nc6 {[%emt 0:00:05]} 3. Nc3 {[%emt 0:00:00]} e6 {[%emt 0:00:42]} 4. d4 {[%emt 0:00:00]} cxd4 {[%emt 0:00:03]} 5. Nxd4 {[%emt 0:00:06]} Qc7 {[%emt 0:00:17]} 6. g3 {[%emt 0:00:11]} a6 {[%emt 0:00:30]} 7. Bg2 {[%emt 0:00:09]} Nf6 {[%emt 0:00:20]} 8. O-O {[%emt 0:00:14]} Bc5 {[%emt 0:01:01]} 9. Nxc6 {[%emt 0:00:33]} dxc6 {[%emt 0:01:05]} 10. Na4 {[%emt 0:00:06]} Ba7 {[%emt 0:01:35]} 11. c4 {[%emt 0:00:11]} e5 {[%emt 0:00:42]} 12. c5 {[%emt 0:00:32]} Be6 {[%emt 0:01:42]} 13. Qc2 {[%emt 0:02:02]} O-O {[%emt 0:10:27]} 14. Bg5 {[%emt 0:00:34]} Ne8 {[%emt 0:00:25]} 15. Be3 {[%emt 0:04:43]} Qe7 {[%emt 0:02:54]} 16. Nb6 {[%emt 0:03:06]} Rd8 {[%emt 0:00:13]} 17. Qc3 {[%emt 0:03:00]} f6 {[%emt 0:13:36]} 18. a4 {[%emt 0:02:34]} Nc7 {[%emt 0:06:48]} 19. f4 {[%emt 0:03:10]} exf4 {[%emt 0:03:11]} 20. Bxf4 {[%emt 0:00:12]} Bf7 {[%emt 0:00:36]} 21. Kh1 {[%emt 0:07:57]} Bxb6 {[%emt 0:07:53]} 22. cxb6 {[%emt 0:01:16]} Ne6 {[%emt 0:00:01]} 23. e5 {[%emt 0:06:35]} Nxf4 {[%emt 0:02:12]} 24. exf6 {[%emt 0:05:50]} Qxf6 {[%emt 0:00:21]} 1/2-1/2

[Event "Romanian Open 2019"]
[Site "Alba Iulia"]
[Date "2019.10.30"]
[Round "3.10"]
[White "Veress, Armand"]
[Black "Andreev, Eduard"]
[Result "0-1"]
[ECO "B53"]
[WhiteElo "2159"]
[BlackElo "2435"]
[Annotator "NA"]
[PlyCount "80"]
[EventDate "2019.10.28"]
[EventType "swiss"]
[EventCountry "ROU"]
[SourceTitle "playchess.com"]
[Source "ChessBase"]
[SourceQuality "1"]
[TimeControl "5400+30"]

1. e4 {[%emt 0:00:00]} c5 {[%emt 0:00:00]} 2. Nf3 {[%emt 0:00:00]} d6 {[%emt 0:00:00]} 3. d4 {[%emt 0:00:00]} cxd4 {[%emt 0:00:00]} 4. Qxd4 {[%emt 0:00:21]} Nc6 {[%emt 0:00:28]} 5. Bb5 {[%emt 0:00:09]} a6 {[%emt 0:00:12]} 6. Bxc6+ {[%emt 0:00:34]} bxc6 {[%emt 0:00:05]} 7. Nc3 {[%emt 0:00:31]} e5 {[%emt 0:02:19]} 8. Qc4 {[%emt 0:02:38]} Bd7 {[%emt 0:13:06]} 9. O-O {[%emt 0:02:27]} Be7 {[%emt 0:01:41]} 10. Be3 {[%emt 0:04:45]} Nf6 {[%emt 0:01:51]} 11. h3 {[%emt 0:00:20]} O-O {[%emt 0:01:24]} 12. Rad1 {[%emt 0:04:00]} Qb8 {[%emt 0:09:08]} 13. b3 {[%emt 0:21:27]} Be6 {[%emt 0:05:19]} 14. Qe2 {[%emt 0:00:20]} h6 {[%emt 0:03:44]} 15. Bc1 {[%emt 0:06:31]} Qc7 {[%emt 0:11:28]} 16. Na4 {[%emt 0:04:27]} Nd7 {[%emt 0:04:41]} 17. Ba3 {[%emt 0:11:36]} f5 {[%emt 0:02:51]} 18. exf5 {[%emt 0:01:01]} Bxf5 {[%emt 0:00:14]} 19. Nd4 {[%emt 0:03:01]} exd4 {[%emt 0:02:53]} 20. Qxe7 {[%emt 0:00:57]} c5 {[%emt 0:00:21]} 21. c3 {[%emt 0:03:57]} Rae8 {[%emt 0:11:40]} 22. Qh4 {[%emt 0:00:25]} d3 {[%emt 0:00:57]} 23. Nb2 {[%emt 0:09:55]} Ne5 {[%emt 0:02:04]} 24. f4 {[%emt 0:01:31]} Ng6 {[%emt 0:01:28]} 25. Qg3 {[%emt 0:02:14]} Re2 {[%emt 0:01:14]} 26. Rf2 {[%emt 0:08:10]} Qa5 {[%emt 0:16:15]} 27. Nc4 {[%emt 0:01:34]} Qxc3 {[%emt 0:00:12]} 28. Bb2 {[%emt 0:00:54]} Qc2 {[%emt 0:02:13]} 29. Rd2 {[%emt 0:06:15]} Re1+ {[%emt 0:01:21]} 30. Rf1 {[%emt 0:00:38]} Rxf1+ {[%emt 0:00:29]} 31. Kxf1 {[%emt 0:00:03]} Qb1+ {[%emt 0:00:37]} 32. Kf2 {[%emt 0:00:11]} Be4 {[%emt 0:01:35]} 33. Qe3 {[%emt 0:01:49]} d5 {[%emt 0:01:05]} 34. Ne5 {[%emt 0:02:04]} Nxf4 {[%emt 0:01:45]} 35. Kg3 {[%emt 0:01:43]} Qf1 {[%emt 0:00:19]} 36. Nf3 {[%emt 0:01:01]} Ne2+ {[%emt 0:00:49]} 37. Kh2 {[%emt 0:00:27]} Bxf3 {[%emt 0:01:01]} 38. gxf3 {[%emt 0:00:32]} Rxf3 {[%emt 0:00:20]} 39. Qe6+ {[%emt 0:00:28]} Kh7 {[%emt 0:00:17]} 40. Qg4 {[%emt 0:00:33]} Rf2+ {[%emt 0:00:12]} 0-1

[Event "Romanian Open 2019"]
[Site "Alba Iulia"]
[Date "2019.10.30"]
[Round "3.11"]
[White "Advait, Bagri"]
[Black "David, Alexandru-Vasile"]
[Result "0-1"]
[ECO "C78"]
[WhiteElo "2231"]
[BlackElo "2424"]
[Annotator "NA"]
[PlyCount "86"]
[EventDate "2019.10.28"]
[EventType "swiss"]
[EventCountry "ROU"]
[SourceTitle "playchess.com"]
[Source "ChessBase"]
[SourceQuality "1"]
[TimeControl "5400+30"]

1. e4 {[%emt 0:00:11]} e5 {[%emt 0:00:00]} 2. Nf3 {[%emt 0:00:34]} Nc6 {[%emt 0:00:00]} 3. Bb5 {[%emt 0:00:29]} a6 {[%emt 0:00:00]} 4. Ba4 {[%emt 0:00:58]} Nf6 {[%emt 0:00:06]} 5. O-O {[%emt 0:00:19]} Bc5 {[%emt 0:00:14]} 6. c3 {[%emt 0:00:25]} b5 {[%emt 0:00:06]} 7. Bb3 {[%emt 0:00:49]} d6 {[%emt 0:00:10]} 8. d4 {[%emt 0:01:09]} Ba7 {[%emt 0:00:47]} 9. h3 {[%emt 0:02:19]} O-O {[%emt 0:03:37]} 10. a4 {[%emt 0:12:04]} b4 {[%emt 0:00:40]} 11. Re1 {[%emt 0:03:31]} Bb7 {[%emt 0:03:07]} 12. Bg5 {[%emt 0:05:24]} Ne7 {[%emt 0:10:19]} 13. Nbd2 {[%emt 0:07:21]} Ng6 {[%emt 0:00:54]} 14. h4 {[%emt 0:06:45]} h6 {[%emt 0:05:48]} 15. h5 {[%emt 0:00:26]} Nf4 {[%emt 0:03:19]} 16. Bxf4 {[%emt 0:02:03]} bxc3 {[%emt 0:01:00]} 17. bxc3 {[%emt 0:07:20]} exf4 {[%emt 0:00:07]} 18. Nh2 {[%emt 0:08:51]} Qd7 {[%emt 0:16:56]} 19. Qf3 {[%emt 0:01:30]} Rae8 {[%emt 0:02:49]} 20. Qxf4 {[%emt 0:02:48]} Nxh5 {[%emt 0:00:52]} 21. Qh4 {[%emt 0:03:34]} Nf6 {[%emt 0:00:47]} 22. Bc2 {[%emt 0:00:46]} c5 {[%emt 0:09:28]} 23. d5 {[%emt 0:01:14]} c4 {[%emt 0:00:05]} 24. Nxc4 {[%emt 0:02:18]} Qc7 {[%emt 0:00:17]} 25. Bd3 {[%emt 0:02:35]} a5 {[%emt 0:01:01]} 26. Nf3 {[%emt 0:06:17]} Ba6 {[%emt 0:07:22]} 27. Nfd2 {[%emt 0:00:47]} Nd7 {[%emt 0:05:34]} 28. Qg3 {[%emt 0:02:58]} Bxc4 {[%emt 0:03:59]} 29. Bxc4 {[%emt 0:01:04]} Ne5 {[%emt 0:01:38]} 30. Bb5 {[%emt 0:00:45]} Rc8 {[%emt 0:00:07]} 31. Nf3 {[%emt 0:01:47]} Qxc3 {[%emt 0:01:26]} 32. Qf4 {[%emt 0:05:35]} f6 {[%emt 0:11:45]} 33. Rf1 {[%emt 0:05:11]} Qb2 {[%emt 0:01:22]} 34. Rab1 {[%emt 0:01:02]} Qc2 {[%emt 0:00:15]} 35. Rbc1 {[%emt 0:01:09]} Qb2 {[%emt 0:03:30]} 36. Rb1 {[%emt 0:00:57]} Nxf3+ {[%emt 0:00:48]} 37. Qxf3 {[%emt 0:00:14]} Qe5 {[%emt 0:00:11]} 38. Bd7 {[%emt 0:00:59]} Rc2 {[%emt 0:02:30]} 39. Rb7 {[%emt 0:00:31]} Bc5 {[%emt 0:00:29]} 40. Qg4 {[%emt 0:01:11]} f5 {[%emt 0:00:04]} 41. Bxf5 {[%emt 0:00:29]} Rxf2 {[%emt 0:00:15]} 42. Rxf2 {[%emt 0:01:35]} Qa1+ {[%emt 0:00:04]} 43. Kh2 {[%emt 0:00:03]} Bxf2 {[%emt 0:00:04]} 0-1

[Event "Romanian Open 2019"]
[Site "Alba Iulia"]
[Date "2019.10.30"]
[Round "3.12"]
[White "Nester, Ihor"]
[Black "Talu, Mircea"]
[Result "1/2-1/2"]
[ECO "A30"]
[WhiteElo "2381"]
[BlackElo "2288"]
[Annotator "NA"]
[PlyCount "205"]
[EventDate "2019.10.28"]
[EventType "swiss"]
[EventCountry "ROU"]
[SourceTitle "playchess.com"]
[Source "ChessBase"]
[SourceQuality "1"]
[TimeControl "5400+30"]

1. Nf3 {[%emt 0:09:06]} Nf6 {[%emt 0:00:00]} 2. c4 {[%emt 0:00:08]} e6 {[%emt 0:00:00]} 3. g3 {[%emt 0:00:03]} b6 {[%emt 0:00:00]} 4. Bg2 {[%emt 0:00:03]} Bb7 {[%emt 0:00:00]} 5. O-O {[%emt 0:00:11]} c5 {[%emt 0:00:02]} 6. Nc3 {[%emt 0:00:04]} Be7 {[%emt 0:00:04]} 7. d4 {[%emt 0:00:05]} cxd4 {[%emt 0:00:05]} 8. Qxd4 {[%emt 0:00:03]} O-O {[%emt 0:01:02]} 9. Bf4 {[%emt 0:04:33]} d6 {[%emt 0:05:07]} 10. Qd2 {[%emt 0:00:14]} Qc8 {[%emt 0:02:04]} 11. Rac1 {[%emt 0:11:06]} Qxc4 {[%emt 0:09:06]} 12. Bxd6 {[%emt 0:01:25]} Bxd6 {[%emt 0:11:50]} 13. Qxd6 {[%emt 0:00:03]} Qa6 {[%emt 0:00:22]} 14. Ne5 {[%emt 0:12:23]} Bxg2 {[%emt 0:00:25]} 15. Kxg2 {[%emt 0:00:03]} Nbd7 {[%emt 0:07:25]} 16. Nc6 {[%emt 0:05:41]} Nc5 {[%emt 0:02:54]} 17. Rfd1 {[%emt 0:10:19]} Nfe4 {[%emt 0:08:40]} 18. Nxe4 {[%emt 0:02:16]} Nxe4 {[%emt 0:00:23]} 19. Qd3 {[%emt 0:01:37]} Qxd3 {[%emt 0:01:44]} 20. Rxd3 {[%emt 0:00:03]} Nf6 {[%emt 0:09:17]} 21. Ra3 {[%emt 0:15:56]} a6 {[%emt 0:01:09]} 22. Nb4 {[%emt 0:00:06]} a5 {[%emt 0:00:38]} 23. Nc6 {[%emt 0:00:04]} g6 {[%emt 0:09:29]} 24. Rb3 {[%emt 0:01:52]} Ra6 {[%emt 0:00:38]} 25. Ne5 {[%emt 0:05:30]} Nd5 {[%emt 0:14:21]} 26. e4 {[%emt 0:00:42]} Ne7 {[%emt 0:00:25]} 27. Rc7 {[%emt 0:01:42]} Re8 {[%emt 0:00:22]} 28. Rd3 {[%emt 0:08:46]} b5 {[%emt 0:04:10]} 29. Rdd7 {[%emt 0:00:13]} Kf8 {[%emt 0:00:02]} 30. Ng4 {[%emt 0:01:19]} e5 {[%emt 0:01:12]} 31. Nxe5 {[%emt 0:00:49]} Re6 {[%emt 0:00:06]} 32. Rc5 {[%emt 0:02:02]} f6 {[%emt 0:01:46]} 33. Ng4 {[%emt 0:00:56]} h5 {[%emt 0:00:10]} 34. Ne3 {[%emt 0:00:10]} Rb8 {[%emt 0:06:26]} 35. Kf3 {[%emt 0:01:56]} Nc6 {[%emt 0:00:17]} 36. Rdd5 {[%emt 0:01:14]} Rbe8 {[%emt 0:01:50]} 37. Rxb5 {[%emt 0:01:51]} Rxe4 {[%emt 0:00:07]} 38. Rb7 {[%emt 0:00:51]} f5 {[%emt 0:01:37]} 39. Kg2 {[%emt 0:01:38]} f4 {[%emt 0:01:11]} 40. gxf4 {[%emt 0:00:10]} Rxf4 {[%emt 0:00:03]} 41. Rd6 {[%emt 0:01:48]} Ne5 {[%emt 0:00:32]} 42. h3 {[%emt 0:00:55]} Nf3 {[%emt 0:01:54]} 43. Kf1 {[%emt 0:00:49]} Ng5 {[%emt 0:00:46]} 44. Nd5 {[%emt 0:00:28]} Rxf2+ {[%emt 0:00:02]} 45. Kxf2 {[%emt 0:00:07]} Ne4+ {[%emt 0:00:03]} 46. Kf3 {[%emt 0:00:37]} Nxd6 {[%emt 0:00:02]} 47. Ra7 {[%emt 0:00:20]} Rb8 {[%emt 0:01:29]} 48. b3 {[%emt 0:00:22]} Rb5 {[%emt 0:00:04]} 49. Nf4 {[%emt 0:00:31]} Rf5 {[%emt 0:01:34]} 50. Ke3 {[%emt 0:00:18]} Re5+ {[%emt 0:01:25]} 51. Kd3 {[%emt 0:00:18]} Ke8 {[%emt 0:00:12]} 52. Nxg6 {[%emt 0:00:36]} Rg5 {[%emt 0:00:06]} 53. Nf4 {[%emt 0:00:26]} Rg3+ {[%emt 0:00:34]} 54. Ke2 {[%emt 0:00:11]} Nb5 {[%emt 0:00:54]} 55. Rxa5 {[%emt 0:00:32]} Nd4+ {[%emt 0:00:35]} 56. Kd2 {[%emt 0:00:09]} Rf3 {[%emt 0:00:17]} 57. Nxh5 {[%emt 0:00:37]} Rxh3 {[%emt 0:00:13]} 58. Nf4 {[%emt 0:00:24]} Nxb3+ {[%emt 0:00:10]} 59. axb3 {[%emt 0:00:22]} Rxb3 {[%emt 0:00:03]} 60. Ra7 {[%emt 0:00:09]} Kd8 {[%emt 0:00:26]} 61. Ne6+ {[%emt 0:01:35]} Kc8 {[%emt 0:00:30]} 62. Rh7 {[%emt 0:00:10]} Rg3 {[%emt 0:00:17]} 63. Nc5 {[%emt 0:00:32]} Kb8 {[%emt 0:00:57]} 64. Nd3 {[%emt 0:00:07]} Rg6 {[%emt 0:00:12]} 65. Ke3 {[%emt 0:00:14]} Rg4 {[%emt 0:01:13]} 66. Nf4 {[%emt 0:00:11]} Rg1 {[%emt 0:00:55]} 67. Kd4 {[%emt 0:00:10]} Rd1+ {[%emt 0:00:04]} 68. Kc5 {[%emt 0:00:10]} Rc1+ {[%emt 0:00:31]} 69. Kd6 {[%emt 0:00:06]} Rb1 {[%emt 0:00:27]} 70. Nd5 {[%emt 0:00:57]} Rb7 {[%emt 0:00:57]} 71. Ne7 {[%emt 0:02:39]} Ka7 {[%emt 0:00:43]} 72. Nc6+ {[%emt 0:00:54]} Kb6 {[%emt 0:00:14]} 73. Rh1 {[%emt 0:00:51]} Rg7 {[%emt 0:00:12]} 74. Rb1+ {[%emt 0:00:12]} Ka6 {[%emt 0:00:01]} 75. Ne5 {[%emt 0:00:24]} Rg2 {[%emt 0:01:09]} 76. Kc5 {[%emt 0:00:38]} Rg5 {[%emt 0:00:50]} 77. Kd4 {[%emt 0:00:21]} Rg2 {[%emt 0:00:39]} 78. Nc4 {[%emt 0:00:19]} Rg4+ {[%emt 0:00:32]} 79. Kc5 {[%emt 0:00:06]} Rg5+ {[%emt 0:00:06]} 80. Kc6 {[%emt 0:00:14]} Rg6+ {[%emt 0:00:04]} 81. Nd6 {[%emt 0:00:08]} Ka5 {[%emt 0:00:01]} 82. Rb8 {[%emt 0:01:02]} Ka4 {[%emt 0:00:35]} 83. Kc5 {[%emt 0:00:18]} Rg5+ {[%emt 0:00:51]} 84. Kd4 {[%emt 0:00:05]} Rg7 {[%emt 0:01:01]} 85. Ne4 {[%emt 0:00:19]} Ka5 {[%emt 0:00:41]} 86. Nc3 {[%emt 0:00:19]} Ka6 {[%emt 0:00:41]} 87. Nd5 {[%emt 0:00:29]} Rg1 {[%emt 0:00:33]} 88. Nb4+ {[%emt 0:01:24]} Ka5 {[%emt 0:00:22]} 89. Nc6+ {[%emt 0:00:31]} Ka4 {[%emt 0:00:18]} 90. Ne5 {[%emt 0:00:55]} Rd1+ {[%emt 0:00:56]} 91. Nd3 {[%emt 0:00:07]} Rh1 {[%emt 0:00:24]} 92. Nc5+ {[%emt 0:01:13]} Ka5 {[%emt 0:00:22]} 93. Nb3+ {[%emt 0:00:25]} Ka6 {[%emt 0:00:09]} 94. Kc4 {[%emt 0:00:26]} Rh4+ {[%emt 0:00:30]} 95. Nd4 {[%emt 0:00:11]} Rh1 {[%emt 0:00:32]} 96. Kc5 {[%emt 0:00:49]} Rh5+ {[%emt 0:00:22]} 97. Kb4 {[%emt 0:00:35]} Rh1 {[%emt 0:00:50]} 98. Nb3 {[%emt 0:00:38]} Rh4+ {[%emt 0:00:12]} 99. Ka3 {[%emt 0:00:06]} Ka7 {[%emt 0:00:20]} 100. Rb5 {[%emt 0:00:26]} Ka6 {[%emt 0:00:07]} 101. Rg5 {[%emt 0:00:11]} Kb6 {[%emt 0:00:20]} 102. Nd2 {[%emt 0:00:18]} Rd4 {[%emt 0:00:37]} 103. Nb3 {[%emt 0:00:23]} 1/2-1/2

[Event "Romanian Open 2019"]
[Site "Alba Iulia"]
[Date "2019.10.30"]
[Round "4.1"]
[White "Fedorov, Alexei"]
[Black "Pap, Misa"]
[Result "1-0"]
[ECO "C24"]
[WhiteElo "2551"]
[BlackElo "2432"]
[Annotator "ChessBase"]
[PlyCount "93"]
[EventDate "2019.10.28"]
[EventType "swiss"]
[EventCountry "ROU"]
[SourceTitle "playchess.com"]
[Source "ChessBase"]
[SourceQuality "1"]
[TimeControl "5400+30"]

1. e4 {[%emt 0:00:00]} e5 {[%emt 0:00:01]} 2. Bc4 {[%emt 0:00:01]} Nf6 {[%emt 0:00:18]} 3. d3 {[%emt 0:00:06]} c6 {[%emt 0:00:15]} 4. Nf3 {[%emt 0:00:08]} d5 {[%emt 0:00:27]} 5. Bb3 {[%emt 0:00:11]} a5 {[%emt 0:03:28]} 6. a4 {[%emt 0:01:34]} Bb4+ {[%emt 0:01:06]} 7. c3 {[%emt 0:00:33]} Bd6 {[%emt 0:00:18]} 8. exd5 {[%emt 0:00:54]} cxd5 {[%emt 0:03:48]} 9. Bg5 {[%emt 0:03:06]} Be6 {[%emt 0:00:30]} 10. Na3 {[%emt 0:00:15]} Nbd7 {[%emt 0:04:54]} 11. Nb5 {[%emt 0:01:07]} Bb8 {[%emt 0:00:16]} 12. d4 {[%emt 0:09:30]} e4 {[%emt 0:01:18]} 13. Nd2 {[%emt 0:01:19]} h6 {[%emt 0:11:25]} 14. Bh4 {[%emt 0:00:16]} Nf8 {[%emt 0:12:45]} 15. Qe2 {[%emt 0:05:19]} Ng6 {[%emt 0:00:45]} 16. Bxf6 {[%emt 0:00:55]} Qxf6 {[%emt 0:04:32]} 17. g3 {[%emt 0:00:11]} O-O {[%emt 0:15:19]} 18. O-O-O {[%emt 0:02:41]} Qg5 {[%emt 0:00:07]} 19. h4 {[%emt 0:09:49]} Qd8 {[%emt 0:00:11]} 20. Rdg1 {[%emt 0:09:05]} f5 {[%emt 0:04:31]} 21. h5 {[%emt 0:04:48]} Ne7 {[%emt 0:00:27]} 22. Kb1 {[%emt 0:04:32]} Ra6 {[%emt 0:03:40]} 23. f3 {[%emt 0:01:14]} Kh8 {[%emt 0:01:11]} 24. Bc2 {[%emt 0:03:25]} Ng8 {[%emt 0:06:23]} 25. g4 {[%emt 0:07:13]} Nf6 {[%emt 0:02:37]} 26. gxf5 {[%emt 0:02:55]} Bxf5 {[%emt 0:00:06]} 27. fxe4 {[%emt 0:01:15]} dxe4 {[%emt 0:00:13]} 28. Nc4 {[%emt 0:01:11]} Qe7 {[%emt 0:02:17]} 29. Ne3 {[%emt 0:01:56]} Bh7 {[%emt 0:00:18]} 30. Rf1 {[%emt 0:05:35]} Rc6 {[%emt 0:00:26]} 31. d5 {[%emt 0:02:37]} Rc5 {[%emt 0:00:48]} 32. Nd4 {[%emt 0:04:40]} Nxd5 {[%emt 0:07:13]} 33. Rxf8+ {[%emt 0:02:06]} Qxf8 {[%emt 0:00:04]} 34. Ne6 {[%emt 0:01:32]} Nf4 {[%emt 0:10:49]} 35. Rf1 {[%emt 0:00:49]} Nxe6 {[%emt 0:00:35]} 36. Rxf8+ {[%emt 0:00:06]} Nxf8 {[%emt 0:00:01]} 37. Qg4 {[%emt 0:04:53]} Bd6 {[%emt 0:00:38]} 38. Qd1 {[%emt 0:03:46]} Be7 {[%emt 0:00:39]} 39. Nd5 {[%emt 0:00:53]} Bg5 {[%emt 0:00:20]} 40. Qd4 {[%emt 0:00:32]} Ne6 {[%emt 0:02:54]} 41. Qe5 {[%emt 0:01:13]} Nc7 {[%emt 0:00:06]} 42. c4 {[%emt 0:00:33]} Nxd5 {[%emt 0:00:30]} 43. cxd5 {[%emt 0:00:32]} Rc4 {[%emt 0:01:33]} 44. d6 {[%emt 0:01:06]} e3 {[%emt 0:00:35]} 45. Qe8+ {[%emt 0:00:35]} Bg8 {[%emt 0:00:01]} 46. Bb3 {[%emt 0:01:07]} Kh7 {[%emt 0:00:26]} 47. Bxc4 {[%emt 0:00:09]} 1-0